fUST/lending_fUST_20250626
["ID","MTS","AMOUNT","RATE_DAILY","PERIOD"]
[367601989,1750870244838,-404.69276819,0.00016712,2]
[367601990,1750870244850,-60.76265015,0.00016712,2]
[367601991,1750870244860,-469.90146746,0.00016712,2]
[367601992,1750870244869,-460.0,0.00016712,2]
[367601993,1750870244879,-460.0,0.00016712,2]
[367601994,1750870244889,-461.55,0.00016712,2]
[367601995,1750870244899,-460.0,0.00016712,2]
[367601996,1750870244908,-460.0,0.00016712,2]
[367601997,1750870244917,-297.54348184,0.00016712,2]
[367601998,1750870244926,-270.11987022,0.00016712,2]
[367601999,1750870244936,-460.0,0.00016712,2]
[367602000,1750870244946,-466.81215663,0.00016712,2]
[367602001,1750870244956,-537.89,0.00016712,2]
[367602002,1750870244966,-223.77273256,0.00016712,2]
[367602003,1750870244976,-472.45672854,0.00016712,2]
[367602004,1750870244987,-465.20090635,0.00016712,2]
[367602005,1750870244997,-460.0,0.00016712,2]
[367602006,1750870245006,-460.57470103,0.00016712,2]
[367602007,1750870245015,-460.0,0.00016712,2]
[367602008,1750870245024,-460.0,0.00016712,2]
[367602009,1750870245034,-460.0,0.00016712,2]
[367602010,1750870245043,-460.0,0.00016712,2]
[367602011,1750870245053,-316.06441967,0.00016712,2]
[367602012,1750870245062,-460.0,0.00016712,2]
[367602013,1750870245072,-696.05,0.00016712,2]
[367602014,1750870245081,-501.64,0.00016712,2]
[367602015,1750870245090,-460.0,0.00016712,2]
[367602016,1750870245099,-555.32131225,0.00016712,2]
[367602017,1750870245108,-460.0,0.00016712,2]
[367602018,1750870245117,-460.0,0.00016712,2]
[367602019,1750870245127,-460.0,0.00016712,2]
[367602020,1750870245136,-460.0,0.00016712,2]
[367602021,1750870245147,-460.0,0.00016712,2]
[367602022,1750870245157,-460.0,0.00016712,2]
[367602023,1750870245166,-765.3,0.00016712,2]
[367602024,1750870245176,-190.13181329,0.00016712,2]
[367602025,1750870245186,-442.30942936,0.00016712,2]
[367602026,1750870245195,-460.0,0.00016712,2]
[367602027,1750870245204,-462.54580482,0.00016712,2]
[367602028,1750870245214,-460.0,0.00016712,2]
[367602029,1750870245223,-500.0,0.00016712,2]
[367602030,1750870245235,-460.0,0.00016712,2]
[367602031,1750870245245,-460.0,0.00016712,2]
[367602032,1750870245254,-460.0,0.00016712,2]
[367602033,1750870245264,-460.0,0.00016712,2]
[367602034,1750870245274,-460.0,0.00016712,2]
[367602035,1750870245284,-460.0,0.00016712,2]
[367602036,1750870245294,-460.0,0.00016712,2]
[367602037,1750870245304,-460.0,0.00016712,2]
[367602038,1750870245314,-460.0,0.00016712,2]
[367602039,1750870245324,-460.0,0.00016712,2]
[367602040,1750870245333,-1082.38,0.00016712,2]
[367602041,1750870245343,-460.0,0.00016712,2]
[367602042,1750870245353,-460.0,0.00016712,2]
[367602043,1750870245363,-298.57962969,0.00016712,2]
[367602044,1750870245371,-463.85367909,0.00016712,2]
[367602045,1750870245380,-3221.55,0.00016712,2]
[367602046,1750870245390,-460.0,0.00016712,2]
[367602047,1750870245399,-460.0,0.00016712,2]
[367602048,1750870245407,-460.0,0.00016712,2]
[367602049,1750870245417,-460.0,0.00016712,2]
[367602050,1750870245426,-689.72,0.00016712,2]
[367602051,1750870245435,-539.86,0.00016712,2]
[367602052,1750870245444,-614.13,0.00016712,2]
[367602053,1750870245453,-460.0,0.00016712,2]
[367602054,1750870245463,-2872.65,0.00016712,2]
[367602055,1750870245472,-465.89228058,0.00016712,2]
[367602056,1750870245482,-506.68883614,0.00016712,2]
[367602057,1750870245493,-464.68311241,0.00016712,2]
[367602058,1750870245502,-460.0,0.00016712,2]
[367602059,1750870245511,-460.0,0.00016712,2]
[367602060,1750870245520,-462.64560232,0.00016712,2]
[367602061,1750870245530,-460.0,0.00016712,2]
[367602062,1750870245539,-460.0,0.00016712,2]
[367602063,1750870245549,-461.28198294,0.00016712,2]
[367602064,1750870245559,-460.0,0.00016712,2]
[367602065,1750870245568,-820.04,0.00016712,2]
[367602066,1750870245577,-467.1087756,0.00016712,2]
[367602067,1750870245587,-1575.67,0.00016712,2]
[367602068,1750870245596,-499.78424326,0.00016712,2]
[367602069,1750870245605,-463.03041247,0.00016712,2]
[367602070,1750870245615,-803.49,0.00016712,2]
[367602071,1750870245625,-460.0,0.00016712,2]
[367602072,1750870245633,-465.73596304,0.00016712,2]
[367602073,1750870245642,-587.72,0.00016712,2]
[367602074,1750870245651,-460.0,0.00016712,2]
[367602075,1750870245661,-950.69,0.00016712,2]
[367602076,1750870245671,-470.05944169,0.00016712,2]
[367602077,1750870245681,-256.58896146,0.00016712,2]
[367602078,1750870245691,-460.0,0.00016712,2]
[367602079,1750870245700,-460.0,0.00016712,2]
[367602080,1750870245709,-460.0,0.00016712,2]
[367602081,1750870245721,-460.0,0.00016712,2]
[367602082,1750870245731,-3941.24,0.00016712,2]
[367602083,1750870245743,-460.0,0.00016712,2]
[367602084,1750870245753,-463.50923836,0.00016712,2]
[367602085,1750870245763,-460.0,0.00016712,2]
[367602086,1750870245772,-3842.92,0.00016712,2]
[367602087,1750870245781,-460.0,0.00016712,2]
[367602088,1750870245791,-2404.19,0.00016712,2]
[367602089,1750870245800,-460.0,0.00016712,2]
[367602090,1750870245810,-904.65,0.00016712,2]
[367602091,1750870245820,-464.72728256,0.00016712,2]
[367602092,1750870245830,-463.6574676,0.00016712,2]
[367602093,1750870245840,-1358.77,0.00016712,2]
[367602094,1750870245849,-157.02247952,0.00016712,2]
[367602095,1750870245858,-460.0,0.00016712,2]
[367602096,1750870245867,-460.0,0.00016712,2]
[367602097,1750870245876,-4270.61,0.00016712,2]
[367602098,1750870245885,-460.0,0.00016712,2]
[367602099,1750870245894,-460.0,0.00016712,2]
[367602100,1750870245904,-576.02,0.00016712,2]
[367602101,1750870245913,-586.75676471,0.00016712,2]
[367602102,1750870245922,-466.79636925,0.00016712,2]
[367602103,1750870245932,-338.31,0.00016712,2]
[367602104,1750870245941,-460.0,0.00016712,2]
[367602105,1750870245950,-691.16,0.00016712,2]
[367602106,1750870245960,-460.0,0.00016712,2]
[367602107,1750870245969,-524.87,0.00016712,2]
[367602108,1750870245978,-465.67890801,0.00016712,2]
[367602109,1750870245990,-466.41196086,0.00016712,2]
[367602110,1750870246000,-460.0,0.00016712,2]
[367602111,1750870246009,-460.0,0.00016712,2]
[367602112,1750870246018,-927.92,0.00016712,2]
[367602113,1750870246028,-1174.87,0.00016712,2]
[367602114,1750870246037,-1941.99,0.00016712,2]
[367602115,1750870246046,-460.0,0.00016712,2]
[367602116,1750870246055,-850.42,0.00016712,2]
[367602117,1750870246065,-467.63551549,0.00016712,2]
[367602118,1750870246074,-460.0,0.00016712,2]
[367602119,1750870246084,-460.0,0.00016712,2]
[367602120,1750870246093,-460.0,0.00016712,2]
[367602122,1750870246103,-783.63,0.00016712,2]
[367602123,1750870246112,-466.04038723,0.00016712,2]
[367602124,1750870246123,-460.0,0.00016712,2]
[367602125,1750870246133,-460.0,0.00016712,2]
[367602126,1750870246142,-464.30337493,0.00016712,2]
[367602127,1750870246152,-460.0,0.00016712,2]
[367602128,1750870246161,-1075.09,0.00016712,2]
[367602129,1750870246171,-602.53,0.00016712,2]
[367602130,1750870246181,-773.03,0.00016712,2]
[367602131,1750870246190,-1799.98,0.00016712,2]
[367602132,1750870246200,-500.0,0.00016712,2]
[367602134,1750870246209,-684.4,0.00016712,2]
[367602135,1750870246219,-478.64,0.00016712,2]
[367602136,1750870246228,-474.9,0.00016712,2]
[367602137,1750870246239,-714.7,0.00016712,2]
[367602138,1750870246249,-382.22937272,0.00016712,2]
[367602139,1750870246257,-460.0,0.00016712,2]
[367602141,1750870246266,-462.61799196,0.00016712,2]
[367602142,1750870246276,-3327.83,0.00016712,2]
[367602144,1750870246285,-470.94844231,0.00016712,2]
[367602145,1750870246294,-573.12,0.00016712,2]
[367602146,1750870246303,-774.87,0.00016712,2]
[367602147,1750870246313,-460.0,0.00016712,2]
[367602148,1750870246323,-1963.88,0.00016712,2]
[367602149,1750870246333,-468.94176155,0.00016712,2]
[367602150,1750870246343,-494.91,0.00016712,2]
[367602151,1750870246352,-460.0,0.00016712,2]
[367602152,1750870246362,-460.0,0.00016712,2]
[367602154,1750870246372,-460.0,0.00016712,2]
[367602156,1750870246382,-460.0,0.00016712,2]
[367602157,1750870246392,-460.0,0.00016712,2]
[367602158,1750870246401,-460.0,0.00016712,2]
[367602159,1750870246411,-460.0,0.00016712,2]
[367602160,1750870246422,-3045.46,0.00016712,2]
[367602161,1750870246431,-497.66,0.00016712,2]
[367602162,1750870246440,-460.0,0.00016712,2]
[367602163,1750870246449,-1269.88,0.00016712,2]
[367602164,1750870246459,-623.46136251,0.00016749,2]
[367602165,1750870246469,-195.76815156,0.00016986,2]
[367602166,1750870246478,-460.0,0.00016986,2]
[367602167,1750870246488,-460.0,0.00016986,2]
[367602168,1750870246497,-460.0,0.00016986,2]
[367602169,1750870246507,-460.0,0.00016986,2]
[367602170,1750870246516,-460.0,0.00016986,2]
[367602171,1750870246526,-460.0,0.00016986,2]
[367602172,1750870246537,-332.85242391,0.00016986,2]
[367602173,1750870246547,-460.0,0.00016986,2]
[367602174,1750870246558,-460.0,0.00016986,2]
[367602175,1750870246569,-460.0,0.00016986,2]
[367602176,1750870246579,-460.0,0.00016986,2]
[367602177,1750870246591,-460.0,0.00016986,2]
[367602178,1750870246601,-460.0,0.00016986,2]
[367602179,1750870246611,-460.0,0.00016986,2]
[367602180,1750870246623,-332.13718282,0.00016986,2]
[367602182,1750870246633,-155.96679068,0.00016986,2]
[367602183,1750870246642,-460.0,0.00016986,2]
[367602184,1750870246651,-460.0,0.00016986,2]
[367602185,1750870246661,-460.0,0.00016986,2]
[367602186,1750870246671,-460.0,0.00016986,2]
[367602187,1750870246680,-460.0,0.00016986,2]
[367602188,1750870246690,-460.0,0.00016986,2]
[367602189,1750870246699,-460.0,0.00016986,2]
[367602190,1750870246709,-460.0,0.00016986,2]
[367602191,1750870246720,-460.0,0.00016986,2]
[367602192,1750870246730,-460.0,0.00016986,2]
[367602193,1750870246741,-551.75,0.00016986,2]
[367602194,1750870246751,-460.0,0.00016986,2]
[367602195,1750870246761,-461.55,0.00016986,2]
[367602196,1750870246771,-460.0,0.00016986,2]
[367602197,1750870246781,-460.0,0.00016986,2]
[367602198,1750870246791,-460.0,0.00016986,2]
[367602199,1750870246802,-460.0,0.00016986,2]
[367602200,1750870246811,-460.0,0.00016986,2]
[367602201,1750870246821,-460.0,0.00016986,2]
[367602202,1750870246831,-460.0,0.00016986,2]
[367602203,1750870246841,-696.05,0.00016986,2]
[367602204,1750870246850,-501.64,0.00016986,2]
[367602205,1750870246859,-460.0,0.00016986,2]
[367602206,1750870246868,-460.0,0.00016986,2]
[367602207,1750870246877,-765.3,0.00016986,2]
[367602208,1750870246887,-460.0,0.00016986,2]
[367602209,1750870246896,-460.0,0.00016986,2]
[367602210,1750870246906,-423.96325175,0.00016986,2]
[367602211,1750870246915,-460.0,0.00016986,2]
[367602212,1750870246924,-460.0,0.00016986,2]
[367602213,1750870246934,-460.0,0.00016986,2]
[367602214,1750870246943,-460.0,0.00016986,2]
[367602215,1750870246952,-1082.38,0.00016986,2]
[367602216,1750870246962,-460.0,0.00016986,2]
[367602217,1750870246971,-3221.55,0.00016986,2]
[367602219,1750870246980,-460.0,0.00016986,2]
[367602220,1750870246991,-460.0,0.00016986,2]
[367602221,1750870247000,-211.38,0.00016986,2]
[367602222,1750870247009,-689.72,0.00016986,2]
[367602223,1750870247019,-539.86,0.00016986,2]
[367602224,1750870247028,-2872.65,0.00016986,2]
[367602225,1750870247038,-614.13,0.00016986,2]
[367602226,1750870247047,-460.0,0.00016986,2]
[367602227,1750870247056,-460.0,0.00016986,2]
[367602228,1750870247066,-460.0,0.00016986,2]
[367602229,1750870247076,-460.0,0.00016986,2]
[367602230,1750870247085,-820.04,0.00016986,2]
[367602231,1750870247095,-1575.67,0.00016986,2]
[367602232,1750870247104,-803.49,0.00016986,2]
[367602233,1750870247114,-587.72,0.00016986,2]
[367602234,1750870247123,-950.69,0.00016986,2]
[367602235,1750870247133,-460.0,0.00016986,2]
[367602236,1750870247142,-460.0,0.00016986,2]
[367602237,1750870247151,-460.0,0.00016986,2]
[367602238,1750870247161,-3941.24,0.00016986,2]
[367602239,1750870247170,-460.0,0.00016986,2]
[367602240,1750870247180,-3842.92,0.00016986,2]
[367602241,1750870247189,-460.0,0.00016986,2]
[367602242,1750870247198,-2404.19,0.00016986,2]
[367602243,1750870247208,-904.65,0.00016986,2]
[367602244,1750870247217,-1358.77,0.00016986,2]
[367602245,1750870247227,-460.0,0.00016986,2]
[367602246,1750870247238,-460.0,0.00016986,2]
[367602247,1750870247248,-4270.61,0.00016986,2]
[367602248,1750870247257,-460.0,0.00016986,2]
[367602249,1750870247266,-576.02,0.00016986,2]
[367602250,1750870247275,-460.0,0.00016986,2]
[367602251,1750870247285,-691.16,0.00016986,2]
[367602252,1750870247294,-460.0,0.00016986,2]
[367602253,1750870247303,-524.87,0.00016986,2]
[367602254,1750870247314,-460.0,0.00016986,2]
[367602255,1750870247324,-927.92,0.00016986,2]
[367602256,1750870247335,-1174.87,0.00016986,2]
[367602257,1750870247344,-1941.99,0.00016986,2]
[367602258,1750870247354,-850.42,0.00016986,2]
[367602259,1750870247363,-460.0,0.00016986,2]
[367602260,1750870247372,-460.0,0.00016986,2]
[367602261,1750870247382,-460.0,0.00016986,2]
[367602262,1750870247391,-783.63,0.00016986,2]
[367602263,1750870247400,-460.0,0.00016986,2]
[367602264,1750870247410,-460.0,0.00016986,2]
[367602265,1750870247419,-1075.09,0.00016986,2]
[367602266,1750870247428,-602.53,0.00016986,2]
[367602267,1750870247438,-773.03,0.00016986,2]
[367602268,1750870247447,-1799.98,0.00016986,2]
[367602269,1750870247456,-246.30384673,0.00016986,2]
[367602270,1750870247464,-684.4,0.00016986,2]
[367602271,1750870247473,-478.64,0.00016986,2]
[367602272,1750870247482,-474.9,0.00016986,2]
[367602274,1750870247492,-714.7,0.00016986,2]
[367602276,1750870247501,-460.0,0.00016986,2]
[367602277,1750870247511,-3327.83,0.00016986,2]
[367602278,1750870247521,-573.12,0.00016986,2]
[367602279,1750870247530,-774.87,0.00016986,2]
[367602280,1750870247539,-460.0,0.00016986,2]
[367602281,1750870247548,-1963.88,0.00016986,2]
[367602282,1750870247558,-494.91,0.00016986,2]
[367602283,1750870247567,-460.0,0.00016986,2]
[367602284,1750870247576,-460.0,0.00016986,2]
[367602285,1750870247586,-460.0,0.00016986,2]
[367602286,1750870247595,-460.0,0.00016986,2]
[367602287,1750870247605,-3045.46,0.00016986,2]
[367602288,1750870247614,-460.0,0.00016986,2]
[367602289,1750870247623,-497.66,0.00016986,2]
[367602290,1750870247633,-460.0,0.00016986,2]
[367602291,1750870247642,-1269.88,0.00016986,2]
[367602292,1750870247652,-500.0,0.0001699,2]
[367602293,1750870247799,-4644.28487937,0.00017,2]
[367602294,1750870247811,-500.0,0.00017024,2]
[367602295,1750870247820,-500.0,0.00017026,2]
[367602296,1750870247830,-500.0,0.00017026,2]
[367602297,1750870247839,-500.0,0.00017026,2]
[367602298,1750870247849,-500.0,0.00017029,2]
[367602299,1750870247858,-500.0,0.00017029,2]
[367602300,1750870247868,-500.0,0.00017036,2]
[367602301,1750870247877,-420.83765646,0.00017042,2]
[367602302,1750870247887,-500.0,0.00017042,2]
[367602303,1750870247897,-481.68474319,0.0001705,2]
[367602304,1750870247907,-535.73790015,0.0001705,2]
[367602305,1750870247916,-500.0,0.0001705,2]
[367602306,1750870247926,-425.31093451,0.0001705,2]
[367602307,1750870247935,-500.0,0.00017058,2]
[367602308,1750870247945,-500.0,0.00017064,2]
[367602309,1750870247955,-207.4,0.00017125,2]
[367602310,1750870247964,-366.0085437,0.00017138,2]
[367602311,1750870247974,-623.46136251,0.0001716,2]
[367602312,1750870247985,-4644.28487923,0.00017176,2]
[367602313,1750870247995,-291.0,0.000172,2]
[367602314,1750870248006,-841.40279976,0.00017225,2]
[367602315,1750870248160,-460.0,0.00016712,2]
[367602316,1750870248170,-5.40354379,0.00017225,2]
[367602317,1750870248180,-425.18553072,0.00017225,2]
[367602318,1750870248190,-160.0,0.00017225,2]
[367602319,1750870248199,-160.0,0.00017225,2]
[367602320,1750870248209,-160.0,0.00017225,2]
[367602321,1750870248219,-213.69531788,0.00017225,2]
[367602322,1750870248229,-12558.06783089,0.00017225,2]
[367602323,1750870248240,-160.0,0.00017225,2]
[367602324,1750870248251,-160.0,0.00017225,2]
[367602325,1750870248263,-524.21181985,0.00017225,2]
[367602326,1750870248276,-836.86812089,0.00017225,2]
[367602327,1750870248289,-160.0,0.00017225,2]
[367602328,1750870248299,-230.22714675,0.00017225,2]
[367602329,1750870248309,-160.0,0.00017225,2]
[367602330,1750870248318,-460.0,0.0001726,2]
[367602331,1750870248327,-460.0,0.0001726,2]
[367602332,1750870248338,-460.0,0.0001726,2]
[367602333,1750870248347,-465.28598502,0.0001726,2]
[367602334,1750870248356,-460.0,0.0001726,2]
[367602335,1750870248365,-460.0,0.0001726,2]
[367602336,1750870248374,-103.57450707,0.0001726,2]
[367602337,1750870248398,-356.42549293,0.0001726,2]
[367602338,1750870248408,-250.35716426,0.0001726,2]
[367602339,1750870248417,-395.89220383,0.0001726,2]
[367602340,1750870248427,-460.0,0.0001726,2]
[367602341,1750870248436,-400.54875,0.0001726,2]
[367602342,1750870248445,-460.0,0.0001726,2]
[367602343,1750870248455,-83.00347676,0.0001726,2]
[367602344,1750870459193,14920.96156847,0.00015753,2]
[367602345,1750870459216,7541.37852843,0.00015753,2]
[367602350,1750870741079,165.910226,0.00013699,2]
[367602352,1750871038292,5000.0,0.0001611,2]
[367602353,1750871054659,5000.0,0.0001611,2]
[367602575,1750871172597,2935.1545766,0.00015437,2]
[367602696,1750871236082,177.32,0.00016,2]
[367602707,1750871253207,225.9179712,0.00015412,2]
[367602708,1750871258193,387.9220773,0.00015412,2]
[367602709,1750871275029,10082.4727613,0.0001556,2]
[367603047,1750871316603,609.8644532,0.00015436,2]
[367603477,1750871383227,312.03148775,0.00015944,2]
[367603478,1750871400736,-224.86621675,0.00016137,2]
[367603479,1750871427947,159.71186187,0.00016036,2]
[367603480,1750871428292,159.71186187,0.00016038,2]
[367603525,1750871432002,-300.0,0.00016136,2]
[367603527,1750871432012,-300.0,0.00016136,2]
[367603529,1750871432022,-1200.0,0.00016136,2]
[367603531,1750871432031,-300.0,0.00016136,2]
[367603533,1750871432040,-300.0,0.00016136,2]
[367603535,1750871432050,-16104.93272324,0.00016137,2]
[367603624,1750871437746,-10693.59212001,0.00016137,2]
[367603626,1750871437756,-5000.0,0.00016138,2]
[367603628,1750871437765,-1200.0,0.00016337,2]
[367603630,1750871437774,-1283.01968396,0.00016338,2]
[367603632,1750871437784,-500.0,0.00016436,2]
[367603634,1750871437793,-200.0,0.00016436,2]
[367603636,1750871437802,-500.0,0.00016436,2]
[367603638,1750871437811,-500.0,0.00016436,2]
[367603640,1750871437821,-456.54644842,0.00016436,2]
[367603642,1750871437830,-295.66044728,0.00016437,2]
[367603644,1750871437840,-534.1913504,0.00016437,2]
[367603646,1750871437849,-534.1913504,0.00016437,2]
[367603648,1750871437859,-534.1913504,0.00016437,2]
[367603650,1750871437869,-534.1913504,0.00016437,2]
[367603652,1750871437878,-534.1913504,0.00016437,2]
[367603654,1750871437887,-534.1913504,0.00016437,2]
[367603656,1750871437896,-534.1913504,0.00016437,2]
[367603658,1750871437906,-534.1913504,0.00016437,2]
[367603660,1750871437915,-534.1913504,0.00016437,2]
[367603662,1750871437924,-534.1913504,0.00016437,2]
[367603664,1750871437933,-534.1913504,0.00016437,2]
[367603666,1750871437942,-534.1913504,0.00016437,2]
[367603668,1750871437951,-534.1913504,0.00016437,2]
[367603670,1750871437961,-534.1913504,0.00016437,2]
[367603672,1750871437970,-534.1913504,0.00016437,2]
[367603674,1750871437979,-534.1913504,0.00016437,2]
[367603676,1750871437990,-534.1913504,0.00016437,2]
[367603678,1750871437999,-553.61649042,0.00016437,2]
[367603680,1750871438008,-553.61649042,0.00016437,2]
[367603682,1750871438017,-553.61649042,0.00016437,2]
[367603684,1750871438027,-553.61649042,0.00016437,2]
[367603686,1750871438036,-553.61649042,0.00016437,2]
[367603688,1750871438045,-553.61649042,0.00016437,2]
[367603690,1750871438054,-553.61649042,0.00016437,2]
[367603692,1750871438063,-553.61649042,0.00016437,2]
[367603694,1750871438072,-553.61649042,0.00016437,2]
[367603696,1750871438081,-553.61649042,0.00016437,2]
[367603698,1750871438090,-266.03177238,0.00016438,2]
[367603700,1750871438099,-460.0,0.00016438,2]
[367603702,1750871438108,-460.0,0.00016438,2]
[367603704,1750871438117,-460.0,0.00016438,2]
[367603706,1750871438127,-460.0,0.00016438,2]
[367603708,1750871438136,-460.0,0.00016438,2]
[367603710,1750871438145,-473.09802934,0.00016438,2]
[367603712,1750871438154,-460.0,0.00016438,2]
[367603714,1750871438163,-460.0,0.00016438,2]
[367603716,1750871438173,-460.0,0.00016438,2]
[367603718,1750871438183,-460.0,0.00016438,2]
[367603720,1750871438192,-367.38767853,0.00016438,2]
[367603722,1750871438202,-460.0,0.00016438,2]
[367603724,1750871438211,-460.0,0.00016438,2]
[367603726,1750871438221,-460.0,0.00016438,2]
[367603728,1750871438232,-460.0,0.00016438,2]
[367603731,1750871438242,-460.0,0.00016438,2]
[367603732,1750871438251,-460.0,0.00016438,2]
[367603735,1750871438261,-460.0,0.00016438,2]
[367603737,1750871438274,-460.0,0.00016438,2]
[367603739,1750871438284,-574.38350687,0.00016438,2]
[367603741,1750871438294,-460.0,0.00016438,2]
[367603743,1750871438303,-460.0,0.00016438,2]
[367603745,1750871438314,-460.0,0.00016438,2]
[367603746,1750871438323,-460.0,0.00016438,2]
[367603748,1750871438333,-460.0,0.00016438,2]
[367603750,1750871438343,-460.0,0.00016438,2]
[367603752,1750871438353,-460.0,0.00016438,2]
[367603754,1750871438362,-460.0,0.00016438,2]
[367603756,1750871438372,-247.77158936,0.00016438,2]
[367603758,1750871438381,-460.0,0.00016438,2]
[367603760,1750871438391,-528.49,0.00016438,2]
[367603762,1750871438400,-460.0,0.00016438,2]
[367603781,1750871438409,-281.9530028,0.00016438,2]
[367603783,1750871438585,-460.0,0.00016438,2]
[367603785,1750871438596,-460.0,0.00016438,2]
[367603787,1750871438606,-460.0,0.00016438,2]
[367603789,1750871438615,-460.0,0.00016438,2]
[367603791,1750871438625,-460.0,0.00016438,2]
[367603793,1750871438635,-460.0,0.00016438,2]
[367603795,1750871438644,-460.0,0.00016438,2]
[367603797,1750871438655,-460.0,0.00016438,2]
[367603800,1750871438664,-460.0,0.00016438,2]
[367603802,1750871438674,-500.0,0.00016438,2]
[367603804,1750871438685,-413.6095168,0.00016438,2]
[367603805,1750871438694,-460.0,0.00016438,2]
[367603807,1750871438703,-460.0,0.00016438,2]
[367603810,1750871438713,-460.0,0.00016438,2]
[367603812,1750871438722,-340.0,0.00016438,2]
[367603814,1750871438732,-404.20560324,0.00016438,2]
[367603816,1750871438742,-460.0,0.00016438,2]
[367603818,1750871438752,-460.0,0.00016438,2]
[367603820,1750871438762,-460.0,0.00016438,2]
[367603822,1750871438771,-433.91130044,0.00016438,2]
[367603824,1750871438780,-327.89863412,0.00016438,2]
[367603826,1750871438790,-460.0,0.00016438,2]
[367603828,1750871438799,-434.50545168,0.00016438,2]
[367603830,1750871438808,-460.0,0.00016438,2]
[367603832,1750871438817,-460.0,0.00016438,2]
[367603834,1750871438826,-500.0,0.00016438,2]
[367603836,1750871438835,-246.68891034,0.00016438,2]
[367603839,1750871438854,-464.39108966,0.00016438,2]
[367603841,1750871438864,-460.0,0.00016438,2]
[367603843,1750871438873,-468.54289614,0.00016438,2]
[367603845,1750871438883,-765.02,0.00016438,2]
[367603847,1750871438892,-460.0,0.00016438,2]
[367603849,1750871438902,-318.48755791,0.00016438,2]
[367603852,1750871438922,-460.0,0.00016438,2]
[367603854,1750871438932,-422.67647374,0.00016438,2]
[367603856,1750871438943,-460.0,0.00016438,2]
[367603858,1750871438952,-485.2,0.00016438,2]
[367603860,1750871438963,-460.0,0.00016438,2]
[367603863,1750871438973,-464.65048448,0.00016438,2]
[367603865,1750871438983,-460.0,0.00016438,2]
[367603867,1750871438993,-460.0,0.00016438,2]
[367603869,1750871439003,-460.0,0.00016438,2]
[367603871,1750871439013,-460.0,0.00016438,2]
[367603873,1750871439023,-479.16124575,0.00016438,2]
[367603875,1750871439033,-460.0,0.00016438,2]
[367603877,1750871439043,-1174.53,0.00016438,2]
[367603879,1750871439053,-460.0,0.00016438,2]
[367603881,1750871439062,-460.0,0.00016438,2]
[367603883,1750871439072,-460.0,0.00016438,2]
[367603885,1750871439081,-567.38491806,0.00016438,2]
[367603886,1750871439091,-460.0,0.00016438,2]
[367603887,1750871439102,-460.0,0.00016438,2]
[367603888,1750871439112,-460.0,0.00016438,2]
[367603889,1750871439122,-460.0,0.00016438,2]
[367603890,1750871439132,-467.81903236,0.00016438,2]
[367603891,1750871439142,-460.0,0.00016438,2]
[367603892,1750871439152,-460.0,0.00016438,2]
[367603893,1750871439162,-460.0,0.00016438,2]
[367603894,1750871439172,-569.36,0.00016438,2]
[367603895,1750871439182,-460.0,0.00016438,2]
[367603896,1750871439192,-460.0,0.00016438,2]
[367603897,1750871439202,-445.24797398,0.00016438,2]
[367603898,1750871439212,-460.0,0.00016438,2]